[Event "Italian Women Championship 2023"]
[Site "Brescia"]
[Date "2023.12.06"]
[Round "4.3"]
[White "Rubinshtein, Kamilla"]
[Black "Zimina, Olga"]
[Result "0-1"]
[ECO "B18"]
[WhiteElo "1921"]
[BlackElo "2277"]
[Annotator "RC"]
[PlyCount "166"]
[EventDate "2023.12.03"]
[EventType "tourn"]
[EventCountry "ITA"]
[SourceTitle "playchess.com"]
[Source "ChessBase"]
[SourceQuality "1"]
[TimeControl "40/6000+30:20/3000+30:900+30"]

1. e4 {[%emt 0:00:04]} c6 {[%emt 0:00:06]} 2. d4 {[%emt 0:00:20]} d5 {[%emt 0:00:04]} 3. Nc3 {[%emt 0:00:17]} dxe4 {[%emt 0:00:06]} 4. Nxe4 {[%emt 0:00:07]} Bf5 {[%emt 0:00:02]} 5. Ng3 {[%emt 0:00:16]} Bg6 {[%emt 0:00:04]} 6. N1e2 {[%emt 0:00:25]} Nf6 {[%emt 0:08:37]} 7. Nf4 {[%emt 0:00:37]} e5 {[%emt 0:00:04]} 8. Nxg6 {[%emt 0:00:17]} hxg6 {[%emt 0:00:04]} 9. dxe5 {[%emt 0:02:04]} Qxd1+ {[%emt 0:00:59]} 10. Kxd1 {[%emt 0:00:18]} Ng4 {[%emt 0:00:05]} 11. Ne4 {[%emt 0:04:15]} Nxe5 {[%emt 0:01:03]} 12. Be2 {[%emt 0:03:34]} Be7 {[%emt 0:08:14]} 13. c3 {[%emt 0:03:19]} Rh4 {[%emt 0:01:03]} 14. f3 {[%emt 0:04:30]} f6 {[%emt 0:12:29]} 15. Be3 {[%emt 0:04:34]} Nbd7 {[%emt 0:00:11]} 16. Bf2 {[%emt 0:02:35]} Rh8 {[%emt 0:00:27]} 17. Kc2 {[%emt 0:06:38]} Nb6 {[%emt 0:13:52]} 18. f4 {[%emt 0:16:05]} Nf7 {[%emt 0:00:24]} 19. c4 {[%emt 0:10:21]} O-O-O {[%emt 0:01:02]} 20. a4 {[%emt 0:02:54]} f5 {[%emt 0:05:12]} 21. Nc3 {[%emt 0:05:11]} Kb8 {[%emt 0:19:52]} 22. a5 {[%emt 0:07:39]} Nd7 {[%emt 0:00:32]} 23. a6 {[%emt 0:01:26]} b6 {[%emt 0:01:00]} 24. Bf3 {[%emt 0:00:22]} Kc7 {[%emt 0:00:22]} 25. Ne2 {[%emt 0:02:39]} Rde8 {[%emt 0:09:17]} 26. Rhe1 {[%emt 0:08:16]} Bb4 {[%emt 0:00:18]} 27. Rh1 {[%emt 0:02:20]} Nd6 {[%emt 0:06:10]} 28. b3 {[%emt 0:04:42]} Ne4 {[%emt 0:03:54]} 29. Be1 {[%emt 0:01:41]} Bxe1 {[%emt 0:04:25]} 30. Raxe1 {[%emt 0:00:10]} Ndc5 {[%emt 0:00:05]} 31. Nc3 {[%emt 0:05:25]} Nf2 {[%emt 0:00:46]} 32. Rxe8 {[%emt 0:04:18]} Rxe8 {[%emt 0:00:07]} 33. Rf1 {[%emt 0:00:08]} Nfd3 {[%emt 0:00:13]} 34. Ne2 {[%emt 0:00:33]} Nb4+ {[%emt 0:01:52]} 35. Kb2 {[%emt 0:02:00]} Rd8 {[%emt 0:06:56]} 36. Nc1 {[%emt 0:02:43]} Ncxa6 {[%emt 0:02:15]} 37. Kc3 {[%emt 0:01:37]} Re8 {[%emt 0:00:39]} 38. Rd1 {[%emt 0:01:23]} c5 {[%emt 0:01:53]} 39. Kb2 {[%emt 0:02:17]} Re3 {[%emt 0:00:30]} 40. Rd2 {[%emt 0:00:33]} Nb8 {[%emt 0:03:39]} 41. Re2 {[%emt 0:05:56]} Rxe2+ {[%emt 0:01:04]} 42. Nxe2 {[%emt 0:00:54]} Nd7 {[%emt 0:00:39]} 43. g3 {[%emt 0:02:48]} Nf6 {[%emt 0:03:08]} 44. Kc3 {[%emt 0:03:40]} a6 {[%emt 0:02:50]} 45. Ng1 {[%emt 0:09:15]} Nh7 {[%emt 0:03:36]} 46. Nh3 {[%emt 0:04:11]} Kd6 {[%emt 0:00:27]} 47. Kd2 {[%emt 0:02:28]} Ke7 {[%emt 0:00:12]} 48. Bg2 {[%emt 0:05:41]} Kf6 {[%emt 0:00:29]} 49. Nf2 {[%emt 0:07:48]} g5 {[%emt 0:00:15]} 50. fxg5+ {[%emt 0:00:25]} Nxg5 {[%emt 0:01:50]} 51. Nd1 {[%emt 0:00:27]} Ke5 {[%emt 0:07:12]} 52. Nb2 {[%emt 0:04:43]} Kd6 {[%emt 0:05:24]} 53. Na4 {[%emt 0:01:08]} Kc7 {[%emt 0:00:10]} 54. Ke3 {[%emt 0:03:39]} Ne6 {[%emt 0:00:05]} 55. Bf3 {[%emt 0:00:48]} Nc2+ {[%emt 0:02:31]} 56. Kd2 {[%emt 0:00:52]} Ncd4 {[%emt 0:00:49]} 57. Bd1 {[%emt 0:00:07]} b5 {[%emt 0:02:53]} 58. Nc3 {[%emt 0:01:56]} b4 {[%emt 0:00:39]} 59. Nd5+ {[%emt 0:00:48]} Kd6 {[%emt 0:00:07]} 60. Ke3 {[%emt 0:01:02]} g5 {[%emt 0:01:42]} 61. Kd3 {[%emt 0:16:15]} g4 {[%emt 0:30:59]} 62. Ke3 {[%emt 0:01:15]} Ke5 {[%emt 0:01:22]} 63. Nb6 {[%emt 0:00:00]} Nd8 {[%emt 0:00:00]} 64. Nd7+ {[%emt 0:00:00]} Kd6 {[%emt 0:00:00]} 65. Nb6 {[%emt 0:00:00]} N8c6 {[%emt 0:00:00]} 66. Nd5 {[%emt 0:00:00]} a5 {[%emt 0:00:00]} 67. Nb6 {[%emt 0:00:00]} Ne5 {[%emt 0:00:00]} 68. Na4 {[%emt 0:00:00]} Nd7 {[%emt 0:00:00]} 69. Nb2 {[%emt 0:00:00]} Ne5 {[%emt 0:00:00]} 70. Na4 {[%emt 0:00:00]} Kc6 {[%emt 0:00:00]} 71. Nb2 {[%emt 0:00:00]} Ng6 {[%emt 0:00:16]} 72. Na4 {[%emt 0:01:39]} Nf8 {[%emt 0:00:07]} 73. Nb2 {[%emt 0:01:14]} Nfe6 {[%emt 0:00:30]} 74. Nd3 {[%emt 0:00:40]} Kd6 {[%emt 0:00:16]} 75. Nf2 {[%emt 0:02:13]} Ng5 {[%emt 0:05:38]} 76. Nd3 {[%emt 0:00:19]} Ne4 {[%emt 0:02:38]} 77. Nc1 {[%emt 0:01:07]} Nc3 {[%emt 0:00:17]} 78. Kd2 {[%emt 0:00:09]} Nxd1 {[%emt 0:01:11]} 79. Kxd1 {[%emt 0:00:03]} Nf3 {[%emt 0:00:06]} 80. Ke2 {[%emt 0:00:49]} Nxh2 {[%emt 0:00:11]} 81. Ke3 {[%emt 0:00:02]} Nf3 {[%emt 0:00:10]} 82. Kf4 {[%emt 0:00:13]} Nd4 {[%emt 0:00:04]} 83. Ke3 {[%emt 0:00:16]} Ke6 {[%emt 0:00:39]} 0-1

[Event "Italian Women Championship 2023"]
[Site "Brescia"]
[Date "2023.12.06"]
[Round "4.4"]
[White "Cassi, Elisa"]
[Black "Brunello, Marina"]
[Result "0-1"]
[ECO "B41"]
[WhiteElo "1951"]
[BlackElo "2343"]
[Annotator "RC"]
[PlyCount "60"]
[EventDate "2023.12.03"]
[EventType "tourn"]
[EventCountry "ITA"]
[SourceTitle "playchess.com"]
[Source "ChessBase"]
[SourceQuality "1"]
[TimeControl "40/6000+30:20/3000+30:900+30"]

1. e4 {[%emt 0:00:05]} c5 {[%emt 0:01:26]} 2. Nf3 {[%emt 0:00:07]} a6 {[%emt 0:00:10]} 3. c4 {[%emt 0:00:48]} d6 {[%emt 0:03:32]} 4. d4 {[%emt 0:01:05]} cxd4 {[%emt 0:00:53]} 5. Nxd4 {[%emt 0:00:07]} Nf6 {[%emt 0:00:08]} 6. Nc3 {[%emt 0:00:51]} e6 {[%emt 0:00:13]} 7. Be2 {[%emt 0:01:22]} Qc7 {[%emt 0:06:06]} 8. O-O {[%emt 0:01:31]} b6 {[%emt 0:01:11]} 9. f4 {[%emt 0:08:53]} Bb7 {[%emt 0:01:21]} 10. Bf3 {[%emt 0:00:21]} Nbd7 {[%emt 0:04:34]} 11. Be3 {[%emt 0:05:29]} Rc8 {[%emt 0:07:14]} 12. Rc1 {[%emt 0:07:17]} Qb8 {[%emt 0:00:17]} 13. b4 {[%emt 0:10:03]} Be7 {[%emt 0:44:04]} 14. Qd3 {[%emt 0:00:15]} h5 {[%emt 0:00:04]} 15. Bf2 {[%emt 0:12:09]} h4 {[%emt 0:02:51]} 16. Rfe1 {[%emt 0:01:43]} g5 {[%emt 0:07:23]} 17. e5 {[%emt 0:12:59]} dxe5 {[%emt 0:01:30]} 18. fxe5 {[%emt 0:01:43]} Ng8 {[%emt 0:05:19]} 19. Nxe6 {[%emt 0:10:12]} Bxf3 {[%emt 0:00:14]} 20. Ng7+ {[%emt 0:01:48]} Kf8 {[%emt 0:00:28]} 21. gxf3 {[%emt 0:01:26]} Nxe5 {[%emt 0:04:16]} 22. Rxe5 {[%emt 0:00:54]} Qxe5 {[%emt 0:00:05]} 23. Bd4 {[%emt 0:02:03]} Qf4 {[%emt 0:00:08]} 24. Ne2 {[%emt 0:04:24]} Qc7 {[%emt 0:02:26]} 25. Nf5 {[%emt 0:05:47]} Nf6 {[%emt 0:02:16]} 26. Qc3 {[%emt 0:01:41]} Re8 {[%emt 0:07:27]} 27. Nxe7 {[%emt 0:07:12]} Rxe7 {[%emt 0:00:49]} 28. Bxf6 {[%emt 0:00:13]} Rxe2 {[%emt 0:00:27]} 29. Be7+ {[%emt 0:11:08]} Kxe7 {[%emt 0:00:55]} 30. Kf1 {[%emt 0:00:08]} Qxh2 {[%emt 0:00:37]} 0-1

[Event "Italian Women Championship 2023"]
[Site "Brescia"]
[Date "2023.12.07"]
[Round "5.1"]
[White "Brunello, Marina"]
[Black "Sedina, Elena"]
[Result "1-0"]
[ECO "C18"]
[WhiteElo "2343"]
[BlackElo "2169"]
[Annotator "RC"]
[PlyCount "55"]
[EventDate "2023.12.03"]
[EventType "tourn"]
[EventCountry "ITA"]
[SourceTitle "playchess.com"]
[Source "ChessBase"]
[SourceQuality "1"]
[TimeControl "40/6000+30:20/3000+30:900+30"]

1. e4 {[%emt 0:00:03]} e6 {[%emt 0:03:22]} 2. d4 {[%emt 0:00:07]} d5 {[%emt 0:00:04]} 3. Nc3 {[%emt 0:00:06]} Bb4 {[%emt 0:00:29]} 4. e5 {[%emt 0:00:08]} c5 {[%emt 0:00:09]} 5. a3 {[%emt 0:00:07]} Bxc3+ {[%emt 0:00:22]} 6. bxc3 {[%emt 0:00:06]} Nc6 {[%emt 0:01:54]} 7. Qg4 {[%emt 0:14:35]} g6 {[%emt 0:00:21]} 8. Bd2 {[%emt 0:00:55]} Qa5 {[%emt 0:22:53]} 9. Nf3 {[%emt 0:05:39]} Qa4 {[%emt 0:02:06]} 10. Ra2 {[%emt 0:01:44]} Bd7 {[%emt 0:01:24]} 11. Qf4 {[%emt 0:02:06]} c4 {[%emt 0:00:31]} 12. Ng5 {[%emt 0:06:28]} Nd8 {[%emt 0:00:11]} 13. Be2 {[%emt 0:06:50]} h6 {[%emt 0:00:37]} 14. Nf3 {[%emt 0:00:31]} Nc6 {[%emt 0:12:04]} 15. h4 {[%emt 0:11:26]} Rh7 {[%emt 0:08:45]} 16. Nh2 {[%emt 0:02:41]} O-O-O {[%emt 0:23:51]} 17. Ng4 {[%emt 0:06:25]} g5 {[%emt 0:06:59]} 18. Qg3 {[%emt 0:10:44]} Qb5 {[%emt 0:11:39]} 19. O-O {[%emt 0:04:20]} h5 {[%emt 0:04:57]} 20. Nf6 {[%emt 0:00:33]} Nxf6 {[%emt 0:00:08]} 21. exf6 {[%emt 0:00:08]} gxh4 {[%emt 0:01:24]} 22. Qxh4 {[%emt 0:00:43]} e5 {[%emt 0:02:50]} 23. dxe5 {[%emt 0:00:44]} Nxe5 {[%emt 0:00:02]} 24. Qd4 {[%emt 0:00:26]} Nc6 {[%emt 0:00:26]} 25. Qf4 {[%emt 0:00:36]} Rg8 {[%emt 0:03:41]} 26. Bf3 {[%emt 0:00:27]} Bg4 {[%emt 0:01:24]} 27. Bxg4+ {[%emt 0:00:15]} hxg4 {[%emt 0:00:22]} 28. Qf5+ {[%emt 0:00:05]} 1-0

[Event "Italian Women Championship 2023"]
[Site "Brescia"]
[Date "2023.12.07"]
[Round "5.2"]
[White "Zimina, Olga"]
[Black "Cassi, Elisa"]
[Result "1-0"]
[ECO "A13"]
[WhiteElo "2277"]
[BlackElo "1951"]
[Annotator "RC"]
[PlyCount "65"]
[EventDate "2023.12.03"]
[EventType "tourn"]
[EventCountry "ITA"]
[SourceTitle "playchess.com"]
[Source "ChessBase"]
[SourceQuality "1"]
[TimeControl "40/6000+30:20/3000+30:900+30"]

1. c4 {[%emt 0:00:04]} e6 {[%emt 0:00:21]} 2. g3 {[%emt 0:00:14]} d5 {[%emt 0:00:33]} 3. Bg2 {[%emt 0:00:06]} Nf6 {[%emt 0:02:09]} 4. Nf3 {[%emt 0:00:35]} dxc4 {[%emt 0:02:57]} 5. Qa4+ {[%emt 0:00:40]} c6 {[%emt 0:00:40]} 6. Qxc4 {[%emt 0:00:07]} b5 {[%emt 0:00:32]} 7. Qc2 {[%emt 0:03:13]} Bb7 {[%emt 0:00:54]} 8. a4 {[%emt 0:00:13]} a6 {[%emt 0:07:20]} 9. O-O {[%emt 0:02:22]} Nbd7 {[%emt 0:01:07]} 10. d3 {[%emt 0:03:49]} Rc8 {[%emt 0:02:29]} 11. Nc3 {[%emt 0:02:57]} Be7 {[%emt 0:05:01]} 12. Bd2 {[%emt 0:01:25]} O-O {[%emt 0:02:25]} 13. Rfc1 {[%emt 0:02:14]} Qb6 {[%emt 0:09:07]} 14. Qb3 {[%emt 0:12:13]} Ng4 {[%emt 0:15:34]} 15. Be1 {[%emt 0:00:37]} b4 {[%emt 0:04:55]} 16. a5 {[%emt 0:02:21]} Qa7 {[%emt 0:01:53]} 17. Na4 {[%emt 0:26:38]} c5 {[%emt 0:04:27]} 18. h3 {[%emt 0:00:17]} Ngf6 {[%emt 0:02:47]} 19. Bd2 {[%emt 0:01:34]} Bd8 {[%emt 0:07:17]} 20. e4 {[%emt 0:03:25]} Bxa5 {[%emt 0:02:53]} 21. Be3 {[%emt 0:00:16]} Bb6 {[%emt 0:01:16]} 22. Nd2 {[%emt 0:01:49]} a5 {[%emt 0:14:27]} 23. Nxb6 {[%emt 0:01:37]} Qxb6 {[%emt 0:01:44]} 24. Nc4 {[%emt 0:00:05]} Qc7 {[%emt 0:00:23]} 25. Nxa5 {[%emt 0:01:04]} Ba6 {[%emt 0:03:07]} 26. d4 {[%emt 0:04:02]} Rfd8 {[%emt 0:09:20]} 27. dxc5 {[%emt 0:07:47]} Ne5 {[%emt 0:00:36]} 28. Bf4 {[%emt 0:01:16]} Rd3 {[%emt 0:02:37]} 29. Qxb4 {[%emt 0:01:11]} Nh5 {[%emt 0:01:25]} 30. Qb6 {[%emt 0:08:29]} Nxf4 {[%emt 0:04:43]} 31. gxf4 {[%emt 0:00:12]} Ng6 {[%emt 0:00:02]} 32. Qxc7 {[%emt 0:00:10]} Rxc7 {[%emt 0:00:03]} 33. Bf1 {[%emt 0:01:05]} 1-0

[Event "Italian Women Championship 2023"]
[Site "Brescia"]
[Date "2023.12.07"]
[Round "5.3"]
[White "Gueci, Tea"]
[Black "Rubinshtein, Kamilla"]
[Result "1-0"]
[ECO "B40"]
[WhiteElo "2160"]
[BlackElo "1921"]
[Annotator "RC"]
[PlyCount "69"]
[EventDate "2023.12.03"]
[EventType "tourn"]
[EventCountry "ITA"]
[SourceTitle "playchess.com"]
[Source "ChessBase"]
[SourceQuality "1"]
[TimeControl "40/6000+30:20/3000+30:900+30"]

1. e4 {[%emt 0:00:01]} c5 {[%emt 0:00:07]} 2. Nf3 {[%emt 0:00:04]} e6 {[%emt 0:00:13]} 3. g3 {[%emt 0:00:03]} Nc6 {[%emt 0:05:05]} 4. Bg2 {[%emt 0:00:06]} Qc7 {[%emt 0:03:25]} 5. O-O {[%emt 0:00:43]} Nf6 {[%emt 0:01:54]} 6. Re1 {[%emt 0:01:22]} d6 {[%emt 0:01:27]} 7. c3 {[%emt 0:01:14]} Be7 {[%emt 0:05:42]} 8. d4 {[%emt 0:00:49]} cxd4 {[%emt 0:04:22]} 9. cxd4 {[%emt 0:00:21]} d5 {[%emt 0:05:06]} 10. e5 {[%emt 0:03:04]} Nd7 {[%emt 0:09:39]} 11. Nc3 {[%emt 0:06:10]} O-O {[%emt 0:00:55]} 12. Bf4 {[%emt 0:05:32]} a6 {[%emt 0:19:05]} 13. h4 {[%emt 0:05:22]} b5 {[%emt 0:04:46]} 14. Rc1 {[%emt 0:13:09]} Qb6 {[%emt 0:03:17]} 15. Qd3 {[%emt 0:03:08]} Re8 {[%emt 0:05:40]} 16. Bg5 {[%emt 0:10:01]} Bf8 {[%emt 0:01:32]} 17. Bh3 {[%emt 0:00:52]} Bb7 {[%emt 0:03:22]} 18. Be3 {[%emt 0:12:06]} Na5 {[%emt 0:12:33]} 19. Ng5 {[%emt 0:00:43]} g6 {[%emt 0:00:33]} 20. b3 {[%emt 0:01:38]} Rac8 {[%emt 0:00:44]} 21. h5 {[%emt 0:01:59]} Qd8 {[%emt 0:08:24]} 22. hxg6 {[%emt 0:01:16]} hxg6 {[%emt 0:00:08]} 23. Bxe6 {[%emt 0:05:21]} Rxe6 {[%emt 0:00:32]} 24. Nxe6 {[%emt 0:00:03]} fxe6 {[%emt 0:00:21]} 25. Qxg6+ {[%emt 0:00:04]} Bg7 {[%emt 0:00:38]} 26. Qxe6+ {[%emt 0:00:43]} Kf8 {[%emt 0:00:16]} 27. Qf5+ {[%emt 0:06:14]} Kg8 {[%emt 0:00:24]} 28. Ne2 {[%emt 0:01:10]} Nc6 {[%emt 0:02:18]} 29. Qe6+ {[%emt 0:04:30]} Kf8 {[%emt 0:00:12]} 30. Nf4 {[%emt 0:00:04]} Ne7 {[%emt 0:00:21]} 31. Nh5 {[%emt 0:01:17]} Qe8 {[%emt 0:00:33]} 32. Nf6 {[%emt 0:03:53]} Bxf6 {[%emt 0:01:17]} 33. exf6 {[%emt 0:00:04]} Ng8 {[%emt 0:00:11]} 34. Bh6+ {[%emt 0:00:29]} Nxh6 {[%emt 0:00:08]} 35. Rxc8 {[%emt 0:00:03]} 1-0

[Event "Italian Women Championship 2023"]
[Site "Brescia"]
[Date "2023.12.07"]
[Round "5.4"]
[White "Martinelli, Valeria"]
[Black "Sala, Giulia"]
[Result "1-0"]
[ECO "A36"]
[WhiteElo "1976"]
[BlackElo "2045"]
[Annotator "NA RC"]
[PlyCount "51"]
[EventDate "2023.12.03"]
[EventType "tourn"]
[EventCountry "ITA"]
[SourceTitle "playchess.com"]
[Source "ChessBase"]
[SourceQuality "1"]
[TimeControl "40/6000+30:20/3000+30:900+30"]

1. c4 {[%emt 0:00:02]} c5 {[%emt 0:00:08]} 2. Nc3 {[%emt 0:00:05]} Nc6 {[%emt 0:00:26]} 3. g3 {[%emt 0:00:10]} g6 {[%emt 0:00:14]} 4. Bg2 {[%emt 0:00:07]} Bg7 {[%emt 0:00:08]} 5. e3 {[%emt 0:00:06]} d6 {[%emt 0:00:40]} 6. Nge2 {[%emt 0:00:17]} e6 {[%emt 0:00:19]} 7. O-O {[%emt 0:01:48]} Nge7 {[%emt 0:00:25]} 8. a3 {[%emt 0:19:29]} O-O {[%emt 0:01:32]} 9. b4 {[%emt 0:09:17]} cxb4 {[%emt 0:06:19]} 10. axb4 {[%emt 0:00:05]} Nxb4 {[%emt 0:00:15]} 11. Ba3 {[%emt 0:00:23]} Nec6 {[%emt 0:08:28]} 12. d4 {[%emt 0:01:36]} a5 {[%emt 0:04:48]} 13. Qb3 {[%emt 0:19:05]} Ra6 {[%emt 0:07:45]} 14. Rab1 {[%emt 0:11:26]} f5 {[%emt 0:20:04]} 15. Nb5 {[%emt 0:10:19]} Qe7 {[%emt 0:13:18]} 16. Nec3 {[%emt 0:01:51]} Bd7 {[%emt 0:01:40]} 17. Nc7 {[%emt 0:08:15]} Raa8 {[%emt 0:13:22]} 18. Nxa8 {[%emt 0:02:25]} Rxa8 {[%emt 0:00:02]} 19. d5 {[%emt 0:02:18]} Ne5 {[%emt 0:04:52]} 20. dxe6 {[%emt 0:07:11]} Bxe6 {[%emt 0:00:32]} 21. Bxb4 {[%emt 0:00:12]} axb4 {[%emt 0:01:21]} 22. Nd5 {[%emt 0:00:09]} Qf7 {[%emt 0:01:46]} 23. Qxb4 {[%emt 0:00:47]} Rc8 {[%emt 0:00:13]} 24. Qxb7 {[%emt 0:03:14]} Rxc4 {[%emt 0:00:57]} 25. Nf4 {[%emt 0:03:28]} Rc7 {[%emt 0:01:50]} 26. Qb8+ {[%emt 0:00:25]} 1-0

[Event "Italian Women Championship 2023"]
[Site "Brescia"]
[Date "2023.12.08"]
[Round "6.1"]
[White "Sedina, Elena"]
[Black "Sala, Giulia"]
[Result "1/2-1/2"]
[ECO "B29"]
[WhiteElo "2169"]
[BlackElo "2045"]
[Annotator "RC"]
[PlyCount "90"]
[EventDate "2023.12.03"]
[EventType "tourn"]
[EventCountry "ITA"]
[SourceTitle "playchess.com"]
[Source "ChessBase"]
[SourceQuality "1"]
[TimeControl "40/6000+30:20/3000+30:900+30"]

1. e4 {[%emt 0:00:52]} c5 {[%emt 0:00:07]} 2. Nf3 {[%emt 0:00:12]} Nf6 {[%emt 0:00:08]} 3. e5 {[%emt 0:00:40]} Nd5 {[%emt 0:00:06]} 4. Nc3 {[%emt 0:00:13]} e6 {[%emt 0:00:15]} 5. Nxd5 {[%emt 0:01:40]} exd5 {[%emt 0:00:03]} 6. d4 {[%emt 0:00:15]} Nc6 {[%emt 0:03:17]} 7. c3 {[%emt 0:02:09]} d6 {[%emt 0:03:12]} 8. Bb5 {[%emt 0:01:08]} Be7 {[%emt 0:10:26]} 9. exd6 {[%emt 0:17:29]} Bxd6 {[%emt 0:02:56]} 10. Qe2+ {[%emt 0:17:34]} Be6 {[%emt 0:05:08]} 11. dxc5 {[%emt 0:05:39]} Bxc5 {[%emt 0:00:54]} 12. Be3 {[%emt 0:00:31]} Bd6 {[%emt 0:10:43]} 13. O-O {[%emt 0:12:19]} O-O {[%emt 0:00:41]} 14. h3 {[%emt 0:02:57]} h6 {[%emt 0:08:17]} 15. Rfd1 {[%emt 0:05:20]} a6 {[%emt 0:19:13]} 16. Bd3 {[%emt 0:07:11]} Re8 {[%emt 0:00:52]} 17. Bc2 {[%emt 0:05:36]} Qf6 {[%emt 0:06:32]} 18. Qd3 {[%emt 0:15:32]} Rad8 {[%emt 0:06:21]} 19. Bb6 {[%emt 0:05:18]} Rd7 {[%emt 0:02:47]} 20. Re1 {[%emt 0:00:22]} g6 {[%emt 0:03:29]} 21. Qd2 {[%emt 0:01:28]} Kg7 {[%emt 0:07:02]} 22. Be3 {[%emt 0:01:04]} Rh8 {[%emt 0:01:31]} 23. Nd4 {[%emt 0:01:48]} Ne7 {[%emt 0:03:32]} 24. Nb5 {[%emt 0:03:52]} Nc6 {[%emt 0:01:38]} 25. Nd4 {[%emt 0:00:17]} Ne7 {[%emt 0:03:13]} 26. Nb5 {[%emt 0:00:01]} Nc6 {[%emt 0:00:38]} 27. Nxd6 {[%emt 0:00:05]} Rxd6 {[%emt 0:00:07]} 28. Rad1 {[%emt 0:00:49]} Bf5 {[%emt 0:02:39]} 29. Bb3 {[%emt 0:00:31]} Qh4 {[%emt 0:02:05]} 30. Bb6 {[%emt 0:01:40]} Kh7 {[%emt 0:01:50]} 31. Bc7 {[%emt 0:00:30]} Rd7 {[%emt 0:00:40]} 32. Bg3 {[%emt 0:00:27]} Qf6 {[%emt 0:01:27]} 33. Qe3 {[%emt 0:00:29]} Rhd8 {[%emt 0:00:53]} 34. Qb6 {[%emt 0:00:35]} Qg5 {[%emt 0:00:51]} 35. Ba4 {[%emt 0:00:28]} Rc8 {[%emt 0:00:45]} 36. Qe3 {[%emt 0:00:51]} Qd8 {[%emt 0:00:31]} 37. Qe2 {[%emt 0:00:33]} d4 {[%emt 0:01:45]} 38. Bxc6 {[%emt 0:00:30]} Rxc6 {[%emt 0:01:57]} 39. cxd4 {[%emt 0:00:22]} Rxd4 {[%emt 0:00:36]} 40. Rxd4 {[%emt 0:00:07]} Qxd4 {[%emt 0:00:02]} 41. Qe8 {[%emt 0:51:01]} Qd7 {[%emt 0:51:19]} 42. Qf8 {[%emt 0:00:00]} Rc8 {[%emt 0:00:00]} 43. Qe7 {[%emt 0:00:00]} Rc1 {[%emt 0:00:00]} 44. Kh2 {[%emt 0:00:00]} Rxe1 {[%emt 0:00:00]} 45. Qxe1 {[%emt 0:00:00]} f6 {[%emt 0:00:00]} 1/2-1/2

[Event "Italian Women Championship 2023"]
[Site "Brescia"]
[Date "2023.12.08"]
[Round "6.2"]
[White "Rubinshtein, Kamilla"]
[Black "Martinelli, Valeria"]
[Result "0-1"]
[ECO "B22"]
[WhiteElo "1921"]
[BlackElo "1976"]
[Annotator "NA RC"]
[PlyCount "102"]
[EventDate "2023.12.03"]
[EventType "tourn"]
[EventCountry "ITA"]
[SourceTitle "playchess.com"]
[Source "ChessBase"]
[SourceQuality "1"]
[TimeControl "40/6000+30:20/3000+30:900+30"]

1. e4 {[%emt 0:00:04]} Nf6 {[%emt 0:00:05]} 2. e5 {[%emt 0:00:30]} Nd5 {[%emt 0:00:05]} 3. c4 {[%emt 0:01:18]} Nb6 {[%emt 0:00:07]} 4. c5 {[%emt 0:00:31]} Nd5 {[%emt 0:00:07]} 5. Nc3 {[%emt 0:00:05]} e6 {[%emt 0:00:15]} 6. d4 {[%emt 0:00:04]} d6 {[%emt 0:00:13]} 7. cxd6 {[%emt 0:00:06]} cxd6 {[%emt 0:00:05]} 8. Nf3 {[%emt 0:07:05]} Nxc3 {[%emt 0:00:14]} 9. bxc3 {[%emt 0:00:06]} Qc7 {[%emt 0:00:11]} 10. Bd2 {[%emt 0:03:18]} Nd7 {[%emt 0:01:38]} 11. exd6 {[%emt 0:00:52]} Bxd6 {[%emt 0:00:34]} 12. Bd3 {[%emt 0:00:17]} b6 {[%emt 0:05:41]} 13. O-O {[%emt 0:02:24]} Bb7 {[%emt 0:04:25]} 14. h3 {[%emt 0:00:39]} h6 {[%emt 0:10:11]} 15. Re1 {[%emt 0:02:02]} Bf4 {[%emt 0:34:15]} 16. Rc1 {[%emt 0:09:27]} O-O {[%emt 0:03:11]} 17. Be3 {[%emt 0:09:23]} Nf6 {[%emt 0:07:57]} 18. Qd2 {[%emt 0:05:01]} Nd5 {[%emt 0:05:49]} 19. Bxf4 {[%emt 0:02:19]} Qxf4 {[%emt 0:01:14]} 20. Qxf4 {[%emt 0:00:58]} Nxf4 {[%emt 0:00:05]} 21. Be4 {[%emt 0:04:08]} Rab8 {[%emt 0:07:23]} 22. Ne5 {[%emt 0:10:13]} Rfd8 {[%emt 0:02:14]} 23. Rc2 {[%emt 0:10:32]} f6 {[%emt 0:07:47]} 24. Nc6 {[%emt 0:01:52]} Bxc6 {[%emt 0:00:05]} 25. Bxc6 {[%emt 0:00:03]} Rbc8 {[%emt 0:02:05]} 26. Ba4 {[%emt 0:01:14]} Kf7 {[%emt 0:03:08]} 27. Bb3 {[%emt 0:02:06]} Nd5 {[%emt 0:06:16]} 28. c4 {[%emt 0:04:42]} Nb4 {[%emt 0:02:42]} 29. Rce2 {[%emt 0:06:39]} Nd3 {[%emt 0:00:57]} 30. Rd1 {[%emt 0:00:41]} Rxd4 {[%emt 0:02:38]} 31. Red2 {[%emt 0:00:43]} Rcd8 {[%emt 0:00:04]} 32. Bc2 {[%emt 0:00:40]} Nf4 {[%emt 0:00:15]} 33. Rxd4 {[%emt 0:02:12]} Rxd4 {[%emt 0:00:08]} 34. Rxd4 {[%emt 0:00:39]} Ne2+ {[%emt 0:00:04]} 35. Kf1 {[%emt 0:00:03]} Nxd4 {[%emt 0:00:05]} 36. Be4 {[%emt 0:00:25]} Ke7 {[%emt 0:00:12]} 37. Ke1 {[%emt 0:01:07]} Kd6 {[%emt 0:00:04]} 38. Kd2 {[%emt 0:00:18]} Kc5 {[%emt 0:00:05]} 39. Kc3 {[%emt 0:00:27]} f5 {[%emt 0:01:35]} 40. Ba8 {[%emt 0:00:23]} Nc6 {[%emt 0:03:17]} 41. Bxc6 {[%emt 0:52:07]} Kxc6 {[%emt 0:50:04]} 42. Kd4 {[%emt 0:00:05]} Kd6 {[%emt 0:02:19]} 43. f4 {[%emt 0:00:05]} g5 {[%emt 0:00:00]} 44. g3 {[%emt 0:00:00]} gxf4 {[%emt 0:00:00]} 45. gxf4 {[%emt 0:00:00]} a6 {[%emt 0:00:00]} 46. a3 {[%emt 0:00:00]} h5 {[%emt 0:00:00]} 47. h4 {[%emt 0:00:00]} a5 {[%emt 0:00:00]} 48. a4 {[%emt 0:00:00]} e5+ {[%emt 0:00:00]} 49. fxe5+ {[%emt 0:00:00]} Ke6 {[%emt 0:00:00]} 50. c5 {[%emt 0:00:00]} bxc5+ {[%emt 0:00:00]} 51. Kxc5 {[%emt 0:00:00]} Kxe5 {[%emt 0:00:00]} 0-1

[Event "Italian Women Championship 2023"]
[Site "Brescia"]
[Date "2023.12.08"]
[Round "6.3"]
[White "Cassi, Elisa"]
[Black "Gueci, Tea"]
[Result "1/2-1/2"]
[ECO "B51"]
[WhiteElo "1951"]
[BlackElo "2160"]
[Annotator "RC"]
[PlyCount "40"]
[EventDate "2023.12.03"]
[EventType "tourn"]
[EventCountry "ITA"]
[SourceTitle "playchess.com"]
[Source "ChessBase"]
[SourceQuality "1"]
[TimeControl "40/6000+30:20/3000+30:900+30"]

1. e4 {[%emt 0:00:14]} c5 {[%emt 0:00:03]} 2. Nf3 {[%emt 0:00:05]} d6 {[%emt 0:00:03]} 3. Bb5+ {[%emt 0:00:08]} Nd7 {[%emt 0:00:04]} 4. Ba4 {[%emt 0:00:07]} Ngf6 {[%emt 0:00:15]} 5. O-O {[%emt 0:00:13]} a6 {[%emt 0:02:21]} 6. c4 {[%emt 0:00:13]} e5 {[%emt 0:00:58]} 7. Nc3 {[%emt 0:01:38]} Be7 {[%emt 0:02:55]} 8. d3 {[%emt 0:00:47]} h6 {[%emt 0:00:24]} 9. a3 {[%emt 0:03:15]} O-O {[%emt 0:05:28]} 10. b4 {[%emt 0:04:59]} b5 {[%emt 0:02:44]} 11. cxb5 {[%emt 0:17:25]} axb5 {[%emt 0:00:41]} 12. Nxb5 {[%emt 0:01:52]} Nb6 {[%emt 0:03:21]} 13. Bb3 {[%emt 0:00:59]} cxb4 {[%emt 0:10:08]} 14. a4 {[%emt 0:07:10]} Ba6 {[%emt 0:06:19]} 15. Be3 {[%emt 0:05:06]} Qb8 {[%emt 0:05:46]} 16. Qd2 {[%emt 0:06:52]} Nxa4 {[%emt 0:11:54]} 17. Na7 {[%emt 0:18:16]} Nc5 {[%emt 0:04:30]} 18. Bxc5 {[%emt 0:00:21]} dxc5 {[%emt 0:00:04]} 19. Rxa6 {[%emt 0:00:12]} Rxa7 {[%emt 0:01:04]} 20. Rxa7 {[%emt 0:02:51]} Qxa7 {[%emt 0:00:40]} 1/2-1/2